Cogmind - Beta 16.1 @@@ ROGUE MODE // 2026.04.04 @ 11:23:11 Player: FALKE Result: Destroyed by EX-DEC with AWS/EX-DEC Performance ------------- Evolutions (0) 0 Regions Visited (3) 600 Robots Destroyed (36) 180 Value Destroyed (474) 474 Prototype IDs (0) 0 Alien Tech Used (0) 0 Bonus (-36) -36 TOTAL SCORE: 1218 Bonus ------- Follower Combat Kills 25 Friendly Fire -61 Cogmind --------- Core Integrity 0/250 Matter 213/300 Energy 100/100 System Corruption 3% Temperature Cool (2) Movement Walking (120) Location -10/Exiles Parts ------- > --- POWER (1) -------- (None) > --- PROPULSION (2) --- Aluminum Leg Aluminum Leg > --- UTILITY (2) ------ (None) > --- WEAPON (2) ------- Medium Laser Grenade Launcher > --- INVENTORY (5) ---- Small Storage Unit Terrain Scan Processor Light Cannon Datajack Mining Laser Peak State ------------ > --- POWER ------------ Ion Engine > --- PROPULSION ------- Light Treads Light Treads > --- UTILITY ---------- Improved Terrain Scanner Terrain Scan Processor > --- WEAPON ----------- Assault Rifle Light Cannon > --- INVENTORY -------- Small Storage Unit Assault Rifle Grenade Launcher Datajack Datajack [Rating: 10] Favorites ----------- Power Ion Engine Engine Ion Engine Propulsion Light Treads Treads Light Treads Leg Aluminum Leg Utility Improved Terrain Scanner Device Improved Terrain Scanner Storage Small Storage Unit Processor Terrain Scan Processor Weapon Grenade Launcher Energy Gun Medium Laser Ballistic Gun Assault Rifle Ballistic Cannon Light Cannon Launcher Grenade Launcher Special Weapon Mining Laser Special Melee Weapon Datajack Build | -11 -10 -10 -10 ------- Run | Yrd Mat Min Exi Slots Evolved . | . . . . Power . | . . . . Propulsion . | . . . . Utility . | . . . . Weapon . | . . . . Parts Attached 23 | 7 12 4 . Power 4 | 1 3 . . Engine 4 | 1 3 . . Core . | . . . . Reactor . | . . . . Propulsion 6 | 2 2 2 . Treads 2 | 2 . . . Leg 4 | . 2 2 . Wheel . | . . . . Hover . | . . . . Flight . | . . . . Utility 3 | 2 1 . . Device 1 | 1 . . . Storage 1 | 1 . . . Processor 1 | . 1 . . Hackware . | . . . . Protection . | . . . . Artifact . | . . . . Weapon 10 | 2 6 2 . Energy Gun 2 | 1 . 1 . Energy Cannon . | . . . . Ballistic Gun 3 | 1 2 . . Ballistic Cannon 1 | . 1 . . Launcher 2 | . 2 . . Special Weapon 1 | . . 1 . Impact Weapon . | . . . . Slashing Weapon . | . . . . Piercing Weapon . | . . . . Special Melee Weapon 1 | . 1 . . Unidentified Prototypes . | . . . . Parts Lost 7 | . 5 2 . Power 2 | . 1 1 . Propulsion 1 | . 1 . . Utility 2 | . 1 1 . Weapon 2 | . 2 . . Highest Loss Streak 4 | . 4 2 . To Critical Strikes . | . . . . Average Backups 4 | 2 5 4 5 Power . | 1 . . . Propulsion . | . . . . Utility 1 | . . 2 2 Weapon 2 | 1 2 1 2 Tool/Special . | . . . . Unused Backups 2 | . . . 2 Power . | . . . . Propulsion . | . . . . Utility 1 | . . . 1 Weapon . | . . . . Tool/Special 1 | . . . 1 Average Slot Usage (%) 81 | . 93 63 57 Engine 8 | . 12 3 . Treads 12 | . 19 . . Leg 15 | . 8 28 28 Device 6 | . 9 . . Storage 4 | . 6 . . Processor 5 | . 7 3 . Energy Gun 3 | . . 5 14 Ballistic Gun 8 | . 9 8 . Ballistic Cannon 6 | . 6 6 5 Launcher 7 | . 9 2 8 Special Weapon 1 | . . 5 . Special Melee Weapon 1 | . 2 . . Peak Build Rating 10 | 9 10 7 4 Average Rating 6 | 5 8 4 4 On Entrance 5 | . 9 7 4 Avg Prop Armor Cover (%) . | . . . . Naked Turns . | . . . . Heaviest Build 17 | 14 17 7 5 Greatest Support 40 | 40 40 20 20 Greatest Overweight (x) 1 | 1 . . . Average Overweight (x) . | . . . . Largest Inventory Capacity 8 | 8 8 5 5 Average Capacity 6 | 7 6 5 5 Most Carried 7 | 7 7 5 5 Average Carried 4 | 2 5 4 5 Final Capacity 8 | 8 5 5 5 Final Carried 5 | 2 5 5 5 Class Distribution -------------------- 80% | Mutant 19% | Scavenger-Mutant Dominant Class ---------------- Mutant | -10/Materials Mutant | -10/Mines Mutant | -10/Exiles Resources | -11 -10 -10 -10 ----------- Run | Yrd Mat Min Exi Matter Collected 870 | 296 474 100 . Remotely . | . . . . Salvage Created 869 | 200 612 42 15 Parts 66 | 16 47 2 1 Haulers Intercepted . | . . . . Recyclers Shooed . | . . . . Parts Field Recycled . | . . . . Retrieved Matter . | . . . . Parts Self-Destructed . | . . . . Prevented . | . . . . Parts Restored . | . . . . Kills | -11 -10 -10 -10 ------- Run | Yrd Mat Min Exi Combat Hostiles Destroyed 13 | . 12 1 . Guns 11 | . 10 1 . AOE 2 | . 2 . . Classes Destroyed 8 | 3 4 . 1 Worker 8 | 2 6 . . Builder 4 | . 4 . . Tunneler 5 | 5 . . . Recycler 2 | 1 1 . . Watcher 3 | . 3 . . Swarmer 6 | . 6 . . Grunt 7 | . 6 1 . Zionite 1 | . . . 1 Best Kill Streak 7 | 4 7 1 . Combat Bots Only 3 | . 3 1 . Max Kills in Single Turn 2 | 1 2 1 1 Gunslinging . | . . . . Exploded 2 | . 2 . . Melee . | . . . . Uniques/NPCs Destroyed . | . . . . Combat | -11 -10 -10 -10 -------- Run | Yrd Mat Min Exi Hostile Shots Fired 129 | . 115 6 8 Missed 37 | . 31 2 4 Hits 92 | . 84 4 4 Projectile 92 | . 84 4 4 Critical Strikes 1 | . . . 1 Damage Taken 1412 | . 1006 315 91 Core 255 | . 157 22 76 Absorbed by Shields . | . . . . Regen/Repaired (Parts) 44 | . 44 . . Core Remaining (%) 100 | 100 . . . Volleys Fired 98 | 12 68 15 3 Largest 2 | 2 2 2 2 Hottest 100 | 60 60 100 80 Shots Fired 141 | 24 91 19 7 Gun 95 | 24 64 4 3 Cannon 22 | . 19 3 . Launcher 13 | . 8 1 4 Special 11 | . . 11 . Kinetic 101 | 12 83 6 . Thermal 27 | 12 . 12 3 Explosive 13 | . 8 1 4 Electromagnetic . | . . . . Robot Hit Streak 17 | 4 17 2 1 Robot Miss Streak 3 | 2 3 1 2 Penetration Max . | . . . . Secondary Targets . | . . . . Shots Hit Robots 70 | 14 53 2 1 Core Hits 47 | 9 34 1 3 Critical Kills 1 | . 1 . . Critical Parts Destroyed . | . . . . Critical Strikes 1 | . 1 . . Destroy 1 | . 1 . . Melee Attacks 2 | . 2 . . Impact . | . . . . Slashing . | . . . . Piercing . | . . . . Sneak Attacks 2 | . 2 . . Combat Hostiles . | . . . . Follow-up Attacks . | . . . . Damage Inflicted 1453 | 167 1107 106 73 Guns 699 | 167 512 20 . Cannons 129 | . 111 18 . Explosions 625 | . 484 68 73 Melee . | . . . . Ramming . | . . . . Kinetic 740 | 79 623 38 . Thermal 88 | 88 . . . Explosive 625 | . 484 68 73 Electromagnetic . | . . . . Impact . | . . . . Slashing . | . . . . Piercing . | . . . . Highest Corruption 3 | . . 3 3 Average Corruption 3 | . . 3 3 Corruption Purged . | . . . . Corruption Blocked . | . . . . Effects 13 | . . 8 5 Message Errors 3 | . . 3 . Matter Fused 5 | . . 2 3 Energy Discharges 2 | . . 2 . Data Loss (minor) 1 | . . 1 . Misfires 1 | . . . 1 Alerts 1 | . . . 1 Overload Shots . | . . . . Overflow Damage 14 | . 14 . . Projectiles . | . . . . Explosions 14 | . 14 . . Melee . | . . . . Knockbacks 3 | . 3 . . Impact . | . . . . Kinetic 3 | . 3 . . Secondary . | . . . . Self-Inflicted Damage 123 | . 123 . . Shots 4 | . 4 . . Rammed . | . . . . Targets Rammed . | . . . . Kicked . | . . . . Crushed . | . . . . Highest Temperature 71 | . 12 71 6 Average Temperature 24 | . 5 36 3 Received Heat Transfer 453 | . 426 27 . Siege Activations . | . . . . Martial Activations . | . . . . Shielding Activations . | . . . . Robots Disrupted . | . . . . Combat Hostiles . | . . . . Robots Corrupted . | . . . . Combat Hostiles . | . . . . Parts Fried . | . . . . Impact Corruptions . | . . . . Robots Melted . | . . . . Combat Hostiles . | . . . . Parts Melted . | . . . . Heat Transferred 200 | 200 . . . Parts Sabotaged . | . . . . Parts Stolen . | . . . . Parts Stripped . | . . . . Power Chain Reactions . | . . . . Alert | -11 -10 -10 -10 ------- Run | Yrd Mat Min Exi Maximum Alert Level . | . . . . Low Security (%) 100 | 100 100 100 . Level 1 . | . . . . Level 2 . | . . . . Level 3 . | . . . . Level 4 . | . . . . Level 5 . | . . . . High Security . | . . . . Max Security . | . . . . Peak Influence 105 | 10 105 54 . Initial 13 | . . 13 . Average 36 | 1 54 8 . Influence Increases 618 | 40 509 69 . Destroy 0b10 Robot/C 280 | . 240 40 . Destroy 0b10 Robot/NC 110 | 40 70 . . Destroy Leader 66 | . 56 10 . Allied During Kill 3 | . . 3 . Successful Hack 21 | . 21 . . Disable Machine 60 | . 60 . . Destroy Structure 78 | . 62 16 . Influence Decreases 618 | 40 473 105 . Entered New Map 23 | . . 23 . Time Decay 544 | 40 423 81 . Lost Part 51 | . 50 1 . Squads Dispatched 6 | . 6 . . Investigation 5 | . 5 . . Extermination . | . . . . Reinforcement 1 | . 1 . . Assault . | . . . . Garrison . | . . . . Intercept . | . . . . Searches Triggered . | . . . . Construction Impeded . | . . . . Haulers Reinforced . | . . . . Active Scanning Responses . | . . . . Cargo Convoy Interrupts . | . . . . Stealth | -11 -10 -10 -10 --------- Run | Yrd Mat Min Exi Distress Signals . | . . . . Communications Jammed . | . . . . Distress Signals . | . . . . Times Spotted 33 | . 28 4 1 Peak Tracking Total 11 | . 4 2 11 Tactical Retreats . | . . . . Traps | -11 -10 -10 -10 ------- Run | Yrd Mat Min Exi Traps Triggered 3 | . 3 . . Indirectly . | . . . . Trap Hack Attempts . | . . . . Triggered . | . . . . Disarmed . | . . . . Reprogrammed . | . . . . Reused . | . . . . Traps Extracted . | . . . . Installed . | . . . . Triggered . | . . . . Machines | -11 -10 -10 -10 ---------- Run | Yrd Mat Min Exi Machines Disabled 5 | . 4 . 1 Max in Single Turn 1 | . 1 . 1 Machines Repaired . | . . . . Machines Dismantled . | . . . . Machines Sabotaged . | . . . . Overloaded Fab Kills . | . . . . Hacking | -11 -10 -10 -10 --------- Run | Yrd Mat Min Exi Machines Accessed 7 | . 7 . . Terminals 5 | . 5 . . Fabricators . | . . . . Repair Stations 1 | . 1 . . Recycling Units 1 | . 1 . . Scanalyzers . | . . . . Garrison Access . | . . . . Total Hacks 18 | . 18 . . Successful 12 | . 12 . . Failed 6 | . 6 . . Catastrophic 2 | . 2 . . Database Lockouts . | . . . . Manual . | . . . . Terminals 12 | . 12 . . Fabricators . | . . . . Repair Stations 4 | . 4 . . Recycling Units 2 | . 2 . . Scanalyzers . | . . . . Garrison Access . | . . . . Terminal Hacks 6 | . 6 . . Record 4 | . 4 . . Terminal Index 1 | . 1 . . Alert Level 1 | . 1 . . Fabricator Hacks . | . . . . Repair Station Hacks 4 | . 4 . . Scan Component 2 | . 2 . . Repair 2 | . 2 . . Recycling Unit Hacks 2 | . 2 . . Report Inventory 1 | . 1 . . Retrieve Components 1 | . 1 . . Scanalyzer . | . . . . Garrison Access Hacks . | . . . . Unauthorized Hacks . | . . . . Terminals . | . . . . Fabricators . | . . . . Repair Stations . | . . . . Recycling Units . | . . . . Scanalyzers . | . . . . Garrison Access . | . . . . Data Cores Recovered . | . . . . Used . | . . . . Hacking Detections 5 | . 5 . . Full Trace Events 2 | . 2 . . Feedback Events . | . . . . Feedback Blocked . | . . . . Robot Schematics Acquired . | . . . . Robots Built . | . . . . Authchips . | . . . . Time . | . . . . Total Robot Build Rating . | . . . . Part Schematics Acquired . | . . . . Parts Built . | . . . . Authchips . | . . . . Time . | . . . . Total Part Build Rating . | . . . . Part Studies Acquired . | . . . . Parts Repaired 2 | . 2 . . Time 52 | . 52 . . Parts Recycled . | . . . . Recycled Matter . | . . . . Retrieved Matter . | . . . . Retrieved Components 3 | . 3 . . Parts Scanalyzed . | . . . . Part Schematics Acquired . | . . . . Parts Damaged . | . . . . Bothacking | -11 -10 -10 -10 ------------ Run | Yrd Mat Min Exi Used RIF Installer . | . . . . Robots Hacked 1 | . 1 . . Non-combat 1 | . 1 . . Combat . | . . . . Robot Hacks Applied 1 | . 1 . . no_distress 1 | . 1 . . Relay Couplers Released . | . . . . Fabnet Peak Effective % . | . . . . Robots Rewired . | . . . . Allies Hacked . | . . . . Hacks Repelled . | . . . . Allies | -11 -10 -10 -10 -------- Run | Yrd Mat Min Exi Total Allies 1 | . . 1 . Largest Group 1 | . . 1 . Highest-Rated Group 31 | . . 31 . Highest-Rated Ally 31 | . . 31 . Total Orders . | . . . . Ally Attacks 10 | . . 10 . Total Damage 168 | . . 168 . Kills 1 | . . 1 . Allies Corrupted . | . . . . Allies Melted . | . . . . Intel | -11 -10 -10 -10 ------- Run | Yrd Mat Min Exi Active Infowar (turns) 959 | 63 896 . . Terrain 959 | 63 896 . . Robot Analysis Total . | . . . . Derelict Logs Recovered . | . . . . Drone Launches . | . . . . Drone Recoveries . | . . . . Exploration | -11 -10 -10 -10 ------------- Run | Yrd Mat Min Exi Turns Passed 2300 | 290 1271 437 302 Spaces Moved 1094 | 130 499 258 207 Core 22 | 22 . . . Treads 414 | 108 306 . . Legs 658 | . 193 258 207 Wheels . | . . . . Hover . | . . . . Flight . | . . . . Fastest Speed 50 | 50 120 120 120 Average Speed 134 | 144 144 120 120 Slowest Speed 160 | 160 160 120 120 Overloaded Moves . | . . . . Propulsion Burnouts . | . . . . Robots Hopped . | . . . . Potential Cave-ins 3 | . . 3 . Cave-ins Triggered 1 | . . 1 . Exploration Rate (%) 44 | 6 72 45 56 Regions Visited 3 Branch Regions 2 Pre-discovered Areas . | . . . . Known Exits Taken . | . . . . Unknown Exits Taken 3 | 1 1 1 . Scrap Searched 1 | . . 1 . Spaces Dug 18 | . 7 11 . Terrain Destroyed 91 | . 56 22 13 Melee . | . . . . Projectile 11 | . . 11 . AOE 80 | . 56 11 13 Terrain Rammed . | . . . . Walls Destroyed . | . . . . Machines Disabled . | . . . . Actions | -11 -10 -10 -10 --------- Run | Yrd Mat Min Exi Total 1763 | 208 954 346 255 Wait 511 | 52 356 59 44 Move 1091 | 129 498 257 207 Hop . | . . . . Pick Up 19 | 8 10 1 . Fast Attach 5 | 1 2 2 . Attach 8 | 6 2 . . Detach . | . . . . Swap 19 | . 12 6 1 Drop 10 | . 4 6 . Fire 98 | 12 68 15 3 Melee 2 | . 2 . . Ram . | . . . . Kick . | . . . . Crush . | . . . . Escape Stasis . | . . . . Rewire . | . . . . Trap . | . . . . Miscellaneous . | . . . . Route ------- -11/Scrapyard -10/Materials (discovered 3 exits: [*Mat] / [*Min x2]) -10/Mines (discovered 2 exits: [*Exi] / [*Sub]) -10/Exiles (discovered 1 exit: [*Min]) History --------- Turn | Location | Event 13 | -11/Scrapyard | Discovered new exit (range 16) 291 | -11/Scrapyard | Entered Materials 326 | -10/Materials | Build established: Mutant 442 | -10/Materials | Discovered new exit (range 12) 467 | -10/Materials | Repaired Grenade Launcher 493 | -10/Materials | Repaired Assault Rifle 1005 | -10/Materials | Discovered new exit (range 7) 1186 | -10/Materials | Core integrity fell below 50% 1218 | -10/Materials | Lost 4 parts (1p1n1u1w) 1493 | -10/Materials | Build established: Scavenger-Mutant 1515 | -10/Materials | Discovered new exit (range 7) 1562 | -10/Materials | Entered Mines 1594 | -10/Mines | Received a Mining Laser from a helpful Derelict 1657 | -10/Mines | Crushed by falling debris 1889 | -10/Mines | Discovered new exit (range 5) 1938 | -10/Mines | Deemed a non-threat by the Exiles lab entrance 1938 | -10/Mines | Discovered new exit (range 5) 1953 | -10/Mines | Build established: Mutant 1999 | -10/Mines | Entered Exiles 2020 | -10/Exiles | Discovered new exit (range 15) 2094 | -10/Exiles | Met 8R-AWN 2124 | -10/Exiles | Met EX-HEX 2170 | -10/Exiles | Met EX-DEC 2195 | -10/Exiles | Visited The Gauntlet 2296 | -10/Exiles | Attacked by the Exiles 2300 | -10/Exiles | Core integrity fell below 20% 2301 | -10/Exiles | Destroyed by EX-DEC with AWS/EX-DEC Last Messages --------------- most prolific Tinkerers out of Zion? "Too smart and will end up getting everyone in trouble one day with crazy experiments"? Whatever! 02295_ System corrupted: FCS attempts to trigger Grenade Launcher. 02295_ System corrupted: Grenade Launcher misfires. [Achievement: Maybe Next Time I'll Detach My Launcher] [Achievement: My Bad] 02295_ NN-1KZ(z) destroyed. [Achievement: Backstab] 02295_ Machine disabled. 02296_ EXILES: Hostile robot within lab perimeter. Defensive protocols time, folks! 02298_ EX-DEC: "Let's see what this bad boy can do..." 02298_ EX-DEC deploys DAS Turret. 02298_ Machine disabled. Map ----- +----------------------------------------------------+ | ?????????????????????????????????????????????????# | | ???????????????????????????????????????????#####"" | | ????????????????????????????????????????? " | | ??????????????????????????????????????? | | ??????????????????????????????????????? | | ????????????????????? ????????????? | | ??????????????????? ????????????? | | ????????????????? ????????????? | | ????????????????" ????????????? | | ???????????????? ????????????? | | ??????????????? ????????????#""" | | ???????????????" ""?????????????#""" | | ??????????????" """?????????????#"""" | | ??????????????" ""????????????##"" | | ?????????????? ########??####"""" | | ?????????????"" ##aaa####""" | | ?????????????" """" | | ?????????????"" t | | ?????????????""" | | ?????????????# | | ?????????????#" " "" | | ?????????????#"""" c % ""## ##""" " " | | ?????????????#"" = ""#### ######""" " | | ?????????????#" "##??# #????###""" | | ?????????????#""" """#???# #??????#### | | ??????????????# @ ""##???! ?????????? | | ??????????????#"" % """##???#" ????????? | | ??????????????##""" ##????#" ????????? | | ???????????????##"""" ##?????#!!""!"???????? | | ????????????????### #??????########??????? | | ??????????????????##### ##????????????????????? | | ??????????????????????## #?????????????????????? | | ?????????????????????### #?????????????????????? | | ?????????????????????# ##????????????????????? | | ?????????????????????# #????????????????????? | | ??????????????###????# ##????????????????????? | | ????"""""???#"""""???# ##????????????????????? | | ??"""""""???#"""""""?# #????????????????????? | | ?"""""" "#??#" """"### ##????????????????????? | | "#""" """???#"" """??## #?????????????????????? | | "#"" ""????"" ""???# #?????????????????????? | | "###"""########"""###### ########??????????????? | | """" """""""" """""" """""""#??????????????? | | """ """"""" "#""????????????? | | " "??????????? | | " " "?????????? | | " ""??????????? | | "" %! #"" "??????????? | | "" " """"" " """" """""#??????????????? | | ####"""###""###"""########"""######??????????????? | +----------------------------------------------------+ Best States ------------- Heat Dissipation 25 Energy Generation 10 Energy Capacity 250 Matter Stores 300 Matter Capacity 300 Sight Range 16 Terrain Scan Range 16 Terrain Scan Density 85 Evasion (%) 55 Recoil Reduction 2 Item Schematics ----------------- None Robot Schematics ------------------ None Fabricated ------------ Nothing Repaired ---------- Assault Rifle | 56% | -10/Materials Studied --------- None Alien Tech Used ----------------- None Achievements -------------- Backstab Maybe Next Time I'll Detach My Launcher My Bad Challenges ------------ None Game ------ Seed FluxBurstAirjet Manual? 0 Play Time 00:21:49 Cumulative 4.7 hours Start 2026.04.04 @ 11:02:48 End 2026.04.04 @ 11:23:11 Sessions 1 Manual Loads 0 Difficulty Rogue Special Mode None Game No. 10 Rogue 7 Adventurer 3 Explorer 0 Win Type - Total 0 Types 0/0/0/0/0/0/0/0/0/0 Lore% 3 Gallery% 7 Achievement% 9 Wizard Run 0 Options --------- Layout 2 ASCII 0 Keyboard 0 Movement Mouse Keybinds 0 Fullscreen 1 Font 32/SmallcapsGlow Map View 50x44 Zoom Use 0% Tactical HUD 1 Map Filters NONE Filters NONE Steam 1 RUN: cc074ee0-e66a-4f32-9189-85d56f7ca0b7